bitfinex-derivatives/quotes_SOLF0:USTF0_20250202
["timestamp","ask_amount","ask_price","bid_price","bid_amount"]
[1738458956832,0.03324874,218.32,218.3,8.00394913]
[1738458958435,98.8014702,218.41,218.3,8.00394913]
[1738458958637,4.5799,218.38,218.35,8.00394913]
[1738458959029,4.5795,218.4,218.35,8.00394913]
[1738458959233,6.3684702,218.41,218.35,8.00394913]
[1738458959433,6.3684702,218.41,218.31,8.00394913]
[1738458959434,8.00394913,218.38,218.31,8.00394913]
[1738458959630,8.03388928,218.4,218.36,0.03317939]
[1738458959834,0.02994015,218.4,218.36,0.03317939]
[1738458960037,0.02994015,218.4,218.36,8.03442851]
[1738458960238,0.02994015,218.4,218.38,8.00124912]
[1738458960640,0.02994015,218.4,218.36,8.03442851]
[1738458960838,4.5796,218.39,218.36,8.03442851]
[1738458961037,4.5796,218.39,218.36,0.03317939]
[1738458961240,0.02994015,218.4,218.36,0.03317939]
[1738458961638,0.02994015,218.4,218.38,12.19744901]
[1738458962540,0.02994015,218.4,218.38,16.77724901]
[1738458962738,27.12608082,218.54,218.41,12.19744901]
[1738458963040,4.5773,218.51,218.41,16.77664901]
[1738458963241,27.12608082,218.54,218.41,12.19744901]
[1738458963745,27.12608082,218.54,218.45,0.03097132]
[1738458963945,0.03166312,218.5,218.45,0.03097132]
[1738458964944,4.60896312,218.5,218.45,0.03097132]
[1738458965947,0.03166312,218.5,218.45,0.03097132]
[1738458966147,4.5776,218.49,218.45,0.03097132]
[1738458966346,0.03166312,218.5,218.45,0.03097132]
[1738458966744,4.578,218.47,218.45,0.03097132]
[1738458967042,12.19744901,218.49,218.32,12.19744901]
[1738458967043,12.19744901,218.46,218.32,12.19744901]
[1738458967245,12.19744901,218.46,218.34,4.5806]
[1738458967446,17.09824901,218.49,218.35,12.19744901]
[1738458967741,4.5792,218.41,218.35,12.19744901]
[1738458968143,0.03327312,218.4,218.36,0.0336593]
[1738458968340,4.5796,218.39,218.36,0.0336593]
[1738458969448,0.03327312,218.4,218.36,0.0336593]
[1738458969649,12.19744901,218.55,218.38,12.19744901]
[1738458969853,95.5302,218.57,218.43,12.19744901]
[1738458970051,4.577,218.52,218.44,4.5785]
[1738458970547,4.5766,218.54,218.44,4.5785]
[1738458970747,95.5302,218.57,218.46,0.0334565]
[1738458970953,0.03315108,218.5,218.46,0.0334565]
[1738458971952,0.03315108,218.5,218.47,4.5779]
[1738458972155,0.03315108,218.5,218.46,0.0334565]
[1738458972857,0.03315108,218.5,218.46,4.6115565]
[1738458973154,0.03315108,218.5,218.46,12.23090551]
[1738458973550,0.03315108,218.5,218.48,4.5777]
[1738458973756,0.03315108,218.5,218.49,12.19744901]
[1738458974857,0.03315108,218.5,218.46,12.23090551]
[1738458975055,0.03315108,218.5,218.46,0.0334565]
[1738458975248,4.5775,218.49,218.46,0.0334565]
[1738458976358,4.5777,218.48,218.46,0.0334565]
[1738458976958,0.03315108,218.5,218.46,0.0334565]
[1738458978859,4.61065108,218.5,218.46,0.0334565]
[1738458980258,0.03315108,218.5,218.46,0.0334565]
[1738458981562,4.61065108,218.5,218.46,0.0334565]
[1738458981767,0.03315108,218.5,218.46,0.0334565]
[1738458982768,4.5775,218.49,218.46,0.0334565]
[1738458984469,0.03315108,218.5,218.46,0.0334565]
[1738458984968,4.5779,218.47,218.46,0.0334565]
[1738458986268,12.19744901,218.49,218.35,4.5803]
[1738458986567,3.2781,218.48,218.34,12.19744901]
[1738458986776,3.2781,218.48,218.37,12.19744901]
[1738458987167,1.6451,218.48,218.37,12.19744901]
[1738458987474,0.0308354,218.45,218.41,4.5792]
[1738458987872,0.0308354,218.45,218.4,12.19744901]
[1738458988071,0.0308354,218.45,218.41,0.0296239]
[1738458988766,4.579,218.42,218.41,0.0296239]
[1738458988973,0.0308354,218.45,218.41,0.0296239]
[1738458989168,4.579,218.42,218.41,0.0296239]
[1738458991770,4.5803,218.36,218.34,12.19744901]
[1738458991967,4.5803,218.36,218.31,16.77874901]
[1738458992172,3.2518,218.46,218.34,12.19744901]
[1738458992378,4.5796,218.39,218.34,12.19744901]
[1738458992674,3.2518,218.46,218.34,12.19744901]
[1738458992874,0.03226155,218.39,218.34,12.23221667]
[1738458993171,4.5803,218.36,218.34,12.23221667]
[1738458993373,0.03226155,218.39,218.34,12.23221667]
[1738458994379,4.5804,218.36,218.34,0.03476766]
[1738458994772,0.03226155,218.39,218.34,0.03476766]
[1738458995876,4.5804,218.35,218.34,0.03476766]
[1738458996176,4.5804,218.35,218.17,5.0396]
[1738458996177,12.19744901,218.38,218.25,12.19744901]
[1738458996381,4.582,218.28,218.25,12.19744901]
[1738458997282,4.5823,218.26,218.24,0.03044746]
[1738459000386,4.5837,218.2,218.16,12.19744901]
[1738459000577,4.5837,218.2,218.13,16.78244901]
[1738459000777,3.2931,218.28,218.13,16.78244901]
[1738459001580,0.0344329,218.23,218.18,0.03399883]
[1738459001987,4.5838,218.19,218.18,0.03399883]
[1738459003986,0.0344329,218.23,218.18,0.03399883]
[1738459003987,4.5835,218.21,218.18,0.03399883]
[1738459004282,0.0344329,218.23,218.18,0.03399883]
[1738459004786,4.5837,218.2,218.18,0.03399883]
[1738459004988,0.0344329,218.23,218.18,0.03399883]
[1738459005382,4.5838,218.19,218.18,0.03399883]
[1738459009088,0.0344329,218.23,218.18,0.03399883]
[1738459009089,4.5836,218.21,218.18,0.03399883]
[1738459009287,0.0344329,218.23,218.18,0.03399883]
[1738459010186,4.5838,218.19,218.18,0.03399883]
[1738459012988,0.0344329,218.23,218.18,0.03399883]
[1738459013296,0.0344329,218.23,218.19,12.19744901]
[1738459013991,0.0344329,218.23,218.18,0.03399883]
[1738459014489,4.5838,218.19,218.18,0.03399883]
[1738459020793,4.5838,218.19,218.18,9.883e-05]
[1738459024698,4.5835,218.21,218.18,9.883e-05]
[1738459024893,0.0344329,218.23,218.19,12.19744901]
[1738459025694,0.0344329,218.23,218.21,4.5834]
[1738459025898,0.0344329,218.23,218.22,12.19744901]
[1738459026101,31.68328082,218.33,218.22,12.19744901]
[1738459026798,12.19744901,218.32,218.19,15.32254901]
[1738459027004,4.5831,218.23,218.19,15.32254901]
[1738459027208,12.19744901,218.32,218.19,12.19744901]
[1738459027398,12.19744901,218.29,218.19,0.03349162]
[1738459027601,12.19744901,218.29,218.13,13.87124901]
[1738459027806,0.03237671,218.26,218.22,0.02929957]
[1738459028301,4.583,218.23,218.22,0.02929957]
[1738459028502,4.583,218.23,218.22,9.957e-05]
[1738459031614,0.03237671,218.26,218.22,9.957e-05]
[1738459031805,0.03237671,218.26,218.24,12.19744901]
[1738459033014,0.03237671,218.26,218.24,16.78014901]
[1738459033709,0.03237671,218.26,218.24,12.19744901]
[1738459034814,0.03237671,218.26,218.22,9.957e-05]
[1738459035009,0.03237671,218.26,218.23,3.98076742]
[1738459035205,0.03237671,218.26,218.22,9.957e-05]
[1738459035414,0.03237671,218.26,218.23,3.98327671]
[1738459035607,0.03237671,218.26,218.22,9.957e-05]
[1738459036517,4.583,218.23,218.22,9.957e-05]
[1738459042119,4.5853,218.12,218.09,3.1251]
[1738459042311,12.19744901,218.23,218.1,4.0064881]
[1738459042615,4.5845,218.16,218.11,4.0064881]
[1738459042819,4.5845,218.16,218.12,4.0064881]
[1738459043022,4.5845,218.16,218.13,4.0064881]
[1738459043216,4.61744644,218.16,218.12,0.03136217]
[1738459043413,4.5848,218.14,218.13,4.00797779]
[1738459044521,0.03294644,218.16,218.13,4.00797779]
[1738459044720,0.03294644,218.16,218.14,4.00797779]
[1738459045016,0.03294644,218.16,218.12,0.03136217]
[1738459045220,0.03294644,218.16,218.13,4.00596628]
[1738459045421,0.03294644,218.16,218.14,4.0057497]
[1738459045719,4.5847,218.15,218.12,0.03136217]
[1738459045917,4.5847,218.15,218.13,4.00573026]
[1738459046117,4.5847,218.15,218.14,4.00573026]
[1738459046414,4.5851,218.13,218.12,0.03136217]
[1738459046619,4.5851,218.13,218.12,4.03906124]
[1738459048022,4.5851,218.13,218.12,0.03136217]
[1738459056023,4.61754644,218.16,218.12,0.03136217]
[1738459056324,4.61754644,218.16,218.12,12.22881118]
[1738459056521,4.61754644,218.16,218.12,16.81411118]
[1738459056929,0.03294644,218.16,218.12,16.81411118]
[1738459057530,0.03294644,218.16,218.13,4.585]
[1738459058329,0.03294644,218.16,218.14,3.99895335]
[1738459058522,0.03294644,218.16,218.13,4.585]
[1738459058727,0.03294644,218.16,218.14,3.99774993]
[1738459058924,0.03294644,218.16,218.12,0.03136217]
[1738459058925,4.5849,218.14,218.12,0.03136217]
[1738459063033,4.5848,218.15,218.12,0.03136217]
[1738459063434,0.03294644,218.16,218.12,0.03136217]
[1738459065135,0.03294644,218.16,218.12,12.22881118]
[1738459066037,0.03294644,218.16,218.13,3.98173286]
[1738459066238,0.03294644,218.16,218.12,12.22881118]
[1738459066433,0.03294644,218.16,218.13,3.98208112]
[1738459066732,6.3684702,218.29,218.15,12.19744901]
[1738459066931,27.11978082,218.3,218.19,12.19744901]
[1738459067535,27.11978082,218.3,218.2,3.98119645]
[1738459067834,4.5825,218.26,218.22,0.03168954]
[1738459068538,0.03354589,218.27,218.22,0.03168954]
[1738459069739,4.583,218.23,218.22,0.03168954]
[1738459075339,12.19744901,218.25,218.1,12.19744901]
[1738459075541,12.19744901,218.19,218.11,3.98866729]
[1738459075847,12.19744901,218.19,218.05,3.2846]
[1738459076040,12.19744901,218.19,218.06,3.99120816]
[1738459076238,13.89024901,218.19,218.07,3.99120816]
[1738459076545,0.03012634,218.15,218.1,0.03390379]
[1738459077048,4.5855,218.11,218.1,0.03390379]
[1738459078643,0.03012634,218.15,218.1,0.03390379]
[1738459078839,4.61492634,218.15,218.1,0.03390379]
[1738459079545,4.5849,218.14,218.1,0.03390379]
[1738459079739,0.03012634,218.15,218.1,0.03390379]
[1738459080149,4.5851,218.13,218.1,0.03390379]
[1738459080645,4.5855,218.11,218.1,0.03390379]
[1738459087047,0.03012634,218.15,218.1,0.03390379]
[1738459087448,4.5849,218.14,218.1,0.03390379]
[1738459088153,4.5849,218.14,218.11,3.99411155]
[1738459088453,0.03012634,218.15,218.1,0.03390379]
[1738459089152,4.5855,218.11,218.1,0.03390379]
[1738459096952,0.03012634,218.15,218.1,0.03390379]
[1738459097555,4.5849,218.14,218.1,0.03390379]
[1738459098053,4.5849,218.14,218.11,8.01647868]
[1738459099446,4.61482634,218.15,218.11,8.01647868]
[1738459100054,4.5849,218.14,218.11,8.01647868]
[1738459100355,8.01647868,218.14,218.1,0.03390379]
[1738459100856,4.5855,218.11,218.1,0.03390379]
[1738459102053,4.5852,218.13,218.1,0.03390379]
[1738459105062,4.5849,218.14,218.1,0.03390379]
[1738459105357,4.5849,218.14,218.11,12.0112132]
[1738459105558,4.5849,218.14,218.11,8.01647868]
[1738459105748,0.03012634,218.15,218.1,0.03390379]
[1738459105953,4.5855,218.11,218.1,0.03390379]
[1738459106153,4.5855,218.11,218.1,4.02898126]
[1738459106554,4.5853,218.13,218.1,4.02898126]
[1738459106851,0.03012634,218.15,218.11,3.99484355]
[1738459107055,0.03012634,218.15,218.1,0.03390379]
[1738459107754,4.5855,218.11,218.1,0.03390379]
[1738459114667,0.03012634,218.15,218.1,0.03390379]
[1738459114866,8.01647868,218.14,218.1,0.03390379]
[1738459115065,4.5855,218.11,218.1,0.03390379]
[1738459115568,4.5855,218.11,218.1,4.03729097]
[1738459116364,4.5855,218.11,218.1,4.03767978]
[1738459116565,4.5851,218.13,218.1,4.03767978]
[1738459116767,4.5851,218.13,218.1,0.03390379]
[1738459117867,4.5851,218.13,218.11,4.00541716]
[1738459118067,0.03012634,218.15,218.12,4.00493342]
[1738459118268,0.03012634,218.15,218.13,12.0214121]
[1738459118568,0.03012634,218.15,218.14,4.00493342]
[1738459119368,0.03012634,218.15,218.14,4.00683625]
[1738459119567,4.61472634,218.15,218.14,4.00683625]
[1738459121364,4.61472634,218.15,218.14,4.01263807]
[1738459125475,4.61472634,218.15,218.14,4.00941153]
[1738459126577,0.03012634,218.15,218.14,4.00941153]
[1738459129072,0.03012634,218.15,218.14,6.92580645]
[1738459130277,0.03012634,218.15,218.14,4.00941153]
[1738459130477,0.03012634,218.15,218.14,6.9238535]
[1738459131278,0.03012634,218.15,218.14,4.00941153]
[1738459131478,0.03012634,218.15,218.14,8.59421153]
[1738459131884,0.03012634,218.15,218.14,11.49918783]
[1738459132181,0.03012634,218.15,218.14,8.58605992]
[1738459132385,0.03012634,218.15,218.14,11.49882337]
[1738459132579,0.03012634,218.15,218.14,8.58605992]
[1738459133481,8.01647868,218.26,218.14,6.91345983]
[1738459133779,8.01647868,218.24,218.17,8.01647868]
[1738459133975,8.01647868,218.24,218.18,4.00125992]
[1738459134179,8.01647868,218.24,218.19,4.00125992]
[1738459134380,8.01647868,218.24,218.17,8.01647868]
[1738459134582,4.5838,218.19,218.18,3.9992691]
[1738459134880,8.01647868,218.22,218.18,0.03397739]
[1738459135785,4.5838,218.19,218.18,0.03397739]
[1738459139783,4.5838,218.19,218.18,4.03278629]
[1738459139989,4.5835,218.21,218.18,4.03278629]
[1738459140190,4.5835,218.21,218.18,0.03397739]
[1738459142290,8.04825143,218.24,218.18,0.03397739]
[1738459142488,4.5836,218.2,218.18,0.03397739]
[1738459142890,4.5838,218.19,218.18,0.03397739]
[1738459145189,0.03177275,218.24,218.18,0.03397739]
[1738459145190,4.5836,218.2,218.18,0.03397739]
[1738459145398,8.04825143,218.24,218.18,0.03397739]
[1738459145590,8.04825143,218.24,218.19,3.99992286]
[1738459145897,4.5836,218.2,218.18,0.03397739]
[1738459146090,4.5836,218.2,218.19,4.00001047]
[1738459146687,0.03177275,218.24,218.19,4.00001047]
[1738459146891,0.03177275,218.24,218.2,3.99985197]
[1738459147094,0.03177275,218.24,218.19,8.01647868]
[1738459147394,0.03177275,218.24,218.2,3.99979318]
[1738459147692,8.04825143,218.24,218.21,4.00041995]
[1738459147892,8.04825143,218.24,218.18,0.03397739]
[1738459148092,4.5836,218.2,218.18,0.03397739]
[1738459148294,8.01647868,218.22,218.18,0.03397739]
[1738459150099,4.5836,218.21,218.18,0.03397739]
[1738459150998,4.5836,218.2,218.18,0.03397739]
[1738459156901,8.04825143,218.24,218.18,0.03397739]
[1738459157203,0.03177275,218.24,218.22,8.01647868]
[1738459161405,4.5831,218.23,218.18,0.03397739]
[1738459161608,8.04825143,218.24,218.19,4.0005227]
[1738459161806,8.04825143,218.24,218.18,0.03397739]
[1738459162006,4.5831,218.23,218.19,4.00128701]
[1738459162305,8.04825143,218.24,218.18,0.03397739]
[1738459162505,8.04825143,218.24,218.19,4.00265223]
[1738459162708,8.04825143,218.24,218.18,0.03397739]
[1738459163005,8.04825143,218.24,218.19,4.00225976]
[1738459163199,8.04825143,218.24,218.2,4.00215369]
[1738459163396,8.04825143,218.24,218.18,0.03397739]
[1738459163600,8.04825143,218.24,218.19,4.00232326]
[1738459163801,4.5834,218.21,218.2,4.00164088]
[1738459164398,4.5834,218.21,218.18,0.03397739]
[1738459164604,4.5834,218.21,218.19,4.00113407]
[1738459164906,4.5834,218.21,218.2,4.00113407]
[1738459167005,4.5834,218.21,218.18,0.03397739]
[1738459167207,4.5834,218.21,218.19,4.00260957]
[1738459167407,4.5834,218.21,218.18,0.03397739]
[1738459167608,4.5834,218.21,218.19,4.00220485]
[1738459167808,4.5834,218.21,218.18,0.03397739]
[1738459167999,4.5834,218.21,218.19,4.00184972]
[1738459168306,4.5838,218.19,218.18,0.03397739]
[1738459171407,8.01647868,218.2,218.1,8.01647868]
[1738459171712,8.01647868,218.16,218.11,4.0052279]
[1738459171903,8.01647868,218.16,218.12,4.00565213]
[1738459172109,8.01647868,218.16,218.08,8.01647868]
[1738459172405,8.01647868,218.16,218.1,0.03420034]
[1738459172604,4.5853,218.12,218.11,4.00689979]
[1738459172811,4.5853,218.12,218.11,4.01108677]
[1738459173204,4.5853,218.12,218.1,0.03420034]
[1738459173911,4.5855,218.11,218.1,0.03420034]
[1738459176414,4.5855,218.11,218.1,4.04309775]
[1738459177212,8.04978796,218.14,218.1,0.03420034]
[1738459177413,0.03330928,218.14,218.1,8.05067902]
[1738459178916,4.5853,218.12,218.1,8.05067902]
[1738459180713,0.03330928,218.14,218.1,0.03420034]
[1738459180918,4.5855,218.11,218.1,0.03420034]
[1738459184118,0.03330928,218.14,218.1,0.03420034]
[1738459184310,0.03330928,218.14,218.1,8.05067902]
[1738459185820,4.5853,218.12,218.1,8.05067902]
[1738459186314,0.03330928,218.14,218.13,4.5851]
[1738459186510,0.03330928,218.14,218.13,12.60157868]
[1738459186711,27.1218893,218.26,218.13,12.0263155]
[1738459187015,27.1218893,218.26,218.11,4.5008]
[1738459187016,19.10541062,218.26,218.21,8.01647868]
[1738459187218,19.10541062,218.26,218.19,8.01647868]
[1738459187419,27.1218893,218.26,218.19,8.01647868]
[1738459188021,0.03308345,218.24,218.2,0.0346846]
[1738459188819,4.61588345,218.24,218.2,0.0346846]
[1738459189224,0.03308345,218.24,218.2,0.0346846]
[1738459190222,8.04956213,218.24,218.2,0.0346846]
[1738459191019,4.5833,218.22,218.2,0.0346846]
[1738459196426,8.04956213,218.24,218.2,0.0346846]
[1738459196726,0.03308345,218.24,218.21,8.01647868]
[1738459199022,0.03308345,218.24,218.22,4.5831]
[1738459202431,0.03308345,218.24,218.21,8.01647868]
[1738459202730,0.03308345,218.24,218.21,12.59987868]
[1738459203029,0.03308345,218.24,218.21,8.01647868]
[1738459203832,0.03308345,218.24,218.2,0.0346846]
[1738459205034,0.03308345,218.24,218.2,4.6182846]
[1738459206136,0.03308345,218.24,218.21,4.00320878]
[1738459206435,0.03308345,218.24,218.2,4.6182846]
[1738459206636,0.03308345,218.24,218.21,4.00387061]
[1738459206836,4.583,218.23,218.2,0.0346846]
[1738459207427,0.03308345,218.24,218.2,0.0346846]
[1738459207633,4.61588345,218.24,218.2,0.0346846]
[1738459208337,0.03308345,218.24,218.21,12.01964523]
[1738459208540,0.03308345,218.24,218.23,8.01647868]
[1738459213831,4.5814,218.31,218.23,8.01647868]
[1738459214036,8.59310817,218.32,218.26,8.01647868]
[1738459214436,5.15782949,218.32,218.26,12.59857868]
[1738459214638,0.57662949,218.32,218.3,8.01647868]
[1738459215031,0.57662949,218.32,218.3,12.59787868]
[1738459215640,0.02910798,218.33,218.3,8.01647868]
[1738459215844,6.3684702,218.39,218.32,8.01647868]
[1738459216141,6.3684702,218.39,218.35,8.01647868]
[1738459216641,4.5798,218.38,218.35,8.01647868]
[1738459217740,0.03018026,218.39,218.35,8.01647868]
[1738459218341,0.03018026,218.39,218.34,0.03490028]
[1738459218540,8.01647868,218.37,218.34,0.03490028]
[1738459219741,4.5804,218.35,218.34,0.03490028]
[1738459223142,0.03018026,218.39,218.34,8.05137896]
[1738459223441,0.03018026,218.39,218.36,8.01647868]
[1738459223938,0.03018026,218.39,218.38,8.01647868]
[1738459224345,6.92178477,218.46,218.41,4.579]
[1738459224543,6.92178477,218.46,218.44,8.01647868]
[1738459225043,6.92178477,218.46,218.39,8.01647868]
[1738459225243,8.01647868,218.44,218.37,8.01647868]
[1738459225639,8.01647868,218.44,218.38,0.03284571]
[1738459225640,4.5792,218.41,218.38,0.03284571]
[1738459226245,4.61050922,218.43,218.38,0.03284571]
[1738459226441,0.03160922,218.43,218.38,0.03284571]
[1738459226741,0.03160922,218.43,218.39,8.01647868]
[1738459226946,0.03160922,218.43,218.41,8.01647868]
[1738459227446,0.03160922,218.43,218.41,12.59557868]
[1738459227947,0.03160922,218.43,218.41,8.01647868]
[1738459228544,0.03160922,218.43,218.39,8.01647868]
[1738459229248,0.03160922,218.43,218.41,8.01647868]
[1738459231652,0.03160922,218.43,218.39,8.01647868]
[1738459231855,0.03160922,218.43,218.38,0.03284571]
[1738459232155,8.01647868,218.42,218.38,0.03284571]
[1738459233356,4.5796,218.39,218.38,0.03284571]
[1738459238361,4.5793,218.41,218.38,0.03284571]
[1738459239158,4.579,218.42,218.39,8.01647868]
[1738459240061,4.61040922,218.43,218.39,8.01647868]
[1738459240263,0.03160922,218.43,218.41,8.01647868]
[1738459241164,0.03160922,218.43,218.41,12.59567868]
[1738459241654,0.03160922,218.43,218.39,8.01647868]
[1738459244464,4.5794,218.4,218.38,0.03284571]
[1738459244666,0.03160922,218.43,218.39,8.01647868]
[1738459245563,4.5793,218.41,218.39,8.01647868]
[1738459245762,0.03160922,218.43,218.39,8.01647868]
[1738459246263,4.5793,218.41,218.39,8.01647868]
[1738459246665,0.03160922,218.43,218.38,0.03284571]
[1738459246868,0.03160922,218.43,218.39,8.01647868]
[1738459247767,0.03160922,218.43,218.39,12.59597868]
[1738459248067,0.03160922,218.43,218.41,8.01647868]
[1738459248268,0.03160922,218.43,218.42,4.579]
[1738459249770,0.03160922,218.43,218.41,8.01647868]
[1738459250668,0.03160922,218.43,218.39,8.01647868]
[1738459251059,0.03160922,218.43,218.38,0.03284571]
[1738459251370,4.5793,218.41,218.38,0.03284571]
[1738459251769,0.03160922,218.43,218.39,7.99771274]
[1738459251967,0.59614297,218.5,218.44,4.5785]
[1738459252169,0.59614297,218.5,218.46,12.18286865]
[1738459252966,6.3684702,218.53,218.49,16.76016865]
[1738459253164,0.03298249,218.5,218.49,12.18286865]
[1738459253872,6.3684702,218.53,218.51,4.5771]
[1738459254070,6.3684702,218.53,218.52,12.18286865]
[1738459255668,0.03348493,218.55,218.52,12.18286865]
[1738459255972,0.03348493,218.55,218.52,16.75966865]
[1738459256274,0.03348493,218.55,218.52,12.18286865]
[1738459257566,0.03348493,218.55,218.51,0.03113941]
[1738459257766,4.60978493,218.55,218.51,0.03113941]
[1738459258368,0.03348493,218.55,218.51,0.03113941]
[1738459258772,4.5767,218.53,218.51,0.03113941]
[1738459260576,12.18286865,218.54,218.41,6.075]
[1738459260778,12.18286865,218.54,218.42,3.99586159]
[1738459261076,12.18286865,218.54,218.43,3.99586159]
[1738459261275,12.18286865,218.54,218.41,6.075]
[1738459261476,4.5779,218.47,218.42,3.99622243]
[1738459261677,4.5779,218.47,218.43,3.99622243]
[1738459261874,4.61273706,218.47,218.42,0.02964544]
[1738459262078,0.03483706,218.47,218.43,3.99617668]
[1738459262281,0.03483706,218.47,218.44,8.5742018]
[1738459262576,0.03483706,218.47,218.45,3.99517582]
[1738459262777,0.03483706,218.47,218.43,12.18286865]
[1738459262978,0.03483706,218.47,218.45,4.5783]
[1738459263278,0.03483706,218.47,218.43,12.18286865]
[1738459263479,0.03483706,218.47,218.44,3.99534927]
[1738459263682,0.03483706,218.47,218.43,16.76146865]
[1738459263880,0.03483706,218.47,218.44,3.9948181]
[1738459264080,0.03483706,218.47,218.43,16.76146865]
[1738459264282,0.03483706,218.47,218.44,3.99558672]
[1738459264478,0.03483706,218.47,218.43,12.18286865]
[1738459264779,0.03483706,218.47,218.44,8.57376971]
[1738459264977,0.03483706,218.47,218.45,3.99526971]
[1738459265279,0.03483706,218.47,218.43,12.18286865]
[1738459265480,0.03483706,218.47,218.44,3.99584841]
[1738459265786,0.03483706,218.47,218.43,16.76156865]
[1738459266083,0.03483706,218.47,218.43,12.18286865]
[1738459266780,4.61283706,218.47,218.43,12.18286865]
[1738459267279,0.03483706,218.47,218.42,0.02964544]
[1738459267876,4.5782,218.46,218.42,0.02964544]
[1738459268079,0.03483706,218.47,218.42,0.02964544]
[1738459268581,4.5788,218.43,218.42,0.02964544]
[1738459271983,12.18286865,218.45,218.32,5.9921]
[1738459272285,4.5799,218.38,218.33,4.00272501]
[1738459272480,4.5799,218.38,218.34,4.00272501]
[1738459272679,4.5799,218.38,218.32,4.5809]
[1738459272981,4.5799,218.38,218.33,4.00275692]
[1738459273181,0.03098567,218.37,218.34,4.00275692]
[1738459273483,0.03098567,218.37,218.33,4.61413582]
[1738459273681,0.03098567,218.37,218.34,4.00224443]
[1738459273881,0.03098567,218.37,218.33,4.61413582]
[1738459274084,0.03098567,218.37,218.34,4.00227324]
[1738459274284,0.03098567,218.37,218.33,4.61413582]
[1738459274487,0.03098567,218.37,218.34,4.00170372]
[1738459274783,0.03098567,218.37,218.33,4.61413582]
[1738459274985,0.03098567,218.37,218.34,4.00163608]
[1738459275185,0.03098567,218.37,218.33,4.61413582]
[1738459275486,0.03098567,218.37,218.34,4.00131614]
[1738459275686,0.03098567,218.37,218.33,4.61413582]
[1738459275985,0.03098567,218.37,218.34,4.00139276]
[1738459276186,0.03098567,218.37,218.33,0.03333582]
[1738459276382,0.03098567,218.37,218.34,4.00095533]
[1738459276583,0.03098567,218.37,218.33,0.03333582]
[1738459276782,0.03098567,218.37,218.34,4.00091568]
[1738459276985,0.03098567,218.37,218.34,16.76346865]
[1738459277185,0.03098567,218.37,218.35,4.00040004]
[1738459277486,0.03098567,218.37,218.36,3.99962395]
[1738459277891,0.03098567,218.37,218.36,3.99991163]
[1738459278187,0.03098567,218.37,218.36,8.58011163]
[1738459282289,0.03098567,218.37,218.36,3.99991163]
[1738459285787,0.03098567,218.37,218.36,8.58011163]
[1738459287487,0.03098567,218.37,218.36,3.99991163]
[1738459288785,4.61098567,218.37,218.36,3.99991163]
[1738459288988,0.03098567,218.37,218.33,0.03333582]
[1738459289690,4.5805,218.35,218.33,0.03333582]
[1738459292981,0.03098567,218.37,218.33,0.03333582]
[1738459293290,0.03098567,218.37,218.34,12.18286865]
[1738459294894,0.03098567,218.37,218.35,4.5804]
[1738459296684,59.43285365,218.5,218.34,12.18286865]
[1738459296992,59.43285365,218.5,218.39,12.18286865]
[1738459297191,4.5788,218.43,218.39,12.18286865]
[1738459297491,4.3671,218.5,218.36,12.18286865]
[1738459297688,4.5792,218.41,218.36,12.18286865]
[1738459298195,4.5792,218.41,218.36,12.21611503]
[1738459298588,0.02977402,218.45,218.36,12.21611503]
[1738459298794,4.5789,218.43,218.37,3.99815796]
[1738459298987,4.5789,218.43,218.36,12.21611503]
[1738459299293,4.60827402,218.45,218.39,12.18286865]
[1738459299493,0.02977402,218.45,218.39,12.18286865]
[1738459300092,4.5786,218.44,218.39,12.18286865]
[1738459300491,4.5786,218.44,218.4,4.00170964]
[1738459300691,4.5786,218.44,218.39,12.18286865]
[1738459300891,4.5786,218.44,218.4,4.00161771]
[1738459301191,4.60817402,218.45,218.41,4.00414029]
[1738459301394,0.02977402,218.45,218.39,12.18286865]
[1738459301590,0.02977402,218.45,218.41,0.02932835]
[1738459301793,4.579,218.42,218.41,0.02932835]
[1738459303297,4.5805,218.35,218.3,12.18286865]
[1738459303493,4.5805,218.35,218.31,4.01191813]
[1738459303696,4.5805,218.35,218.32,4.01191813]
[1738459303997,4.5805,218.35,218.3,12.18286865]
[1738459303998,4.5805,218.35,218.33,4.01191813]
[1738459304198,4.5805,218.35,218.34,4.01191813]
[1738459304397,4.5807,218.34,218.3,12.18286865]
[1738459304599,4.5807,218.34,218.32,0.03050172]
[1738459304898,0.0342765,218.37,218.32,0.03050172]
[1738459305997,4.5809,218.33,218.32,0.03050172]
[1738459310200,4.6143765,218.37,218.32,4.04429148]
[1738459310400,0.0342765,218.37,218.32,0.03050172]
[1738459310797,4.5809,218.33,218.32,0.03050172]
[1738459311494,4.5809,218.33,218.32,1.72e-06]
[1738459312901,6.0166,218.33,218.32,1.72e-06]
[1738459313098,7.4805,218.33,218.32,1.72e-06]
[1738459319805,4.5809,218.33,218.32,1.72e-06]
[1738459320497,0.0342765,218.37,218.32,1.72e-06]
[1738459321711,4.5807,218.34,218.32,1.72e-06]